Cogmind - Beta 11 X5 --- EXPLORER MODE // 2021.07.02 @ 20:28:31 Player: Krytoss Result: Destroyed by G-67 Veteran with Electrolaser Performance ------------- Evolutions (7) 3500 Regions Visited (22) 4400 Robots Destroyed (393) 1965 Value Destroyed (21993) 21993 Prototype IDs (46) 920 Alien Tech Used (0) 0 Bonus (10589) 10589 TOTAL SCORE: 43367 Bonus ------- High Alert Combat Kills 2834 Follower Combat Kills 1898 Entered Garrisons 1400 Used RIF Installer 3500 Network Hubs Disabled 400 Built Enhanced Grunts 300 A7 Reached Mainframe 300 Friendly Fire -43 Cogmind --------- Core Integrity 0/1300 Matter 250/300 Energy 32/100 System Corruption 11% Temperature Cool (9) Movement Core (50) Location -3/Research Parts ------- > --- POWER (1) -------- (None) > --- PROPULSION (4) --- (None) > --- UTILITY (14) ----- Experimental Heat Sink Experimental Targeting Computer Experimental Targeting Computer Relay Coupler [Grunt] (53) Relay Coupler [Sentry] (36) Relay Coupler [Sentry] (36) Relay Coupler [Hunter] (29) > --- WEAPON (3) ------- (None) > --- INVENTORY (5) ---- Precision Energy Filter Relay Coupler [NC] (55) Relay Coupler [Behemoth] (25) Advanced Plasma Cannon Improved Plasma Cutter Peak State ------------ > --- POWER ------------ Light Particle Reactor > --- PROPULSION ------- Armored Huge Wheel Armored Huge Wheel > --- UTILITY ---------- Advanced Cooling System Advanced Cooling System Huge Storage Unit Energy Well Experimental Optical Array Experimental Targeting Computer Precision Energy Filter Centrium Medium Armor Plating Centrium Medium Armor Plating Relay Coupler [NC] Relay Coupler [Swarmer] Relay Coupler [Grunt] Relay Coupler [Sentry] Relay Coupler [Hunter] > --- WEAPON ----------- Cooled Plasma Rifle Quantum Rifle Matter Neutralizer > --- INVENTORY -------- Reinforced Fission Core Armored Wheel Armored Wheel Experimental Targeting Computer Precision Energy Filter Relay Coupler [NC] Relay Coupler [NC] Relay Coupler [Grunt] Relay Coupler [Sentry] Relay Coupler [Sentry] Relay Coupler [Behemoth] Relay Coupler [Behemoth] Wave Gun Advanced Plasma Cannon Advanced Plasma Cannon Matter Neutralizer Matter Neutralizer Heavy Shock Bomb Launcher Smartbomb Launcher Improved Remote Datajack Improved Remote Datajack Improved Plasma Cutter [Rating: 130] Favorites ----------- Power F-cell Engine Engine F-cell Engine Power Core Nuclear Core Reactor Quantum Reactor Propulsion Armored Wheel Treads Light Treads Leg Aluminum Leg Wheel Armored Wheel Utility Huge Storage Unit Device Improved Heat Sink Storage Huge Storage Unit Processor Improved Targeting Computer Hackware Relay Coupler [NC] Protection Improved Utility Shielding Weapon Phase Cannon Energy Gun Spread Laser Energy Cannon Phase Cannon Ballistic Gun Heavy Assault Rifle Ballistic Cannon Mini Assault Cannon Launcher Improved Grenade Launcher Special Weapon Improved Remote Datajack Impact Weapon Powered Hammer Special Melee Weapon Datajack Build | -11 -10 -10 -9 -8 -8 -8 -8 -7 -7 -7 -7 -6 -6 -5 -5 -5 -5 -5 -5 -4 -4 -3 ------- Run | Scr Mat Min Mat Mat Gar Mat Gar Fac Gar Fac Gar Fac Gar Fac Ext Cet Arc Hub Gar Fac Gar Res Slots Evolved 15 | . 1 . 2 2 . . . 2 . . . 2 . 2 . . . . . 2 . 2 Power . | . . . . . . . . . . . . . . . . . . . . . . . Propulsion 2 | . . . . . . . . 1 . . . 1 . . . . . . . . . . Utility 12 | . 1 . 1 2 . . . 1 . . . 1 . 2 . . . . . 2 . 2 Weapon 1 | . . . 1 . . . . . . . . . . . . . . . . . . . Parts Attached 360 | . 15 . 33 10 18 6 10 31 24 7 18 29 8 28 8 6 9 8 20 5 30 37 Power 22 | . 1 . 3 1 . . . 3 2 . 2 4 . . 2 . . . 1 . . 3 Engine 10 | . . . . . . . . 3 1 . 2 3 . . 1 . . . . . . . Core 9 | . 1 . 3 1 . . . . 1 . . . . . 1 . . . . . . 2 Reactor 3 | . . . . . . . . . . . . 1 . . . . . . 1 . . 1 Propulsion 76 | . 8 . 4 . 8 1 1 4 7 4 3 8 . 3 3 . . . 3 . 15 4 Treads 25 | . 4 . 1 . 2 . . . 5 4 3 5 . 1 . . . . . . . . Leg 1 | . 1 . . . . . . . . . . . . . . . . . . . . . Wheel 50 | . 3 . 3 . 6 1 1 4 2 . . 3 . 2 3 . . . 3 . 15 4 Hover . | . . . . . . . . . . . . . . . . . . . . . . . Flight . | . . . . . . . . . . . . . . . . . . . . . . . Utility 136 | . 4 . 12 5 7 2 2 13 8 1 5 11 5 13 3 5 6 4 4 5 8 13 Device 69 | . 2 . 6 4 4 1 1 8 5 1 3 6 5 5 1 1 4 3 1 1 3 4 Storage 5 | . 1 . 1 . . 1 . . . . . . . . 1 . . . . . . 1 Processor 6 | . . . 1 . . . . . . . . . . . . . 1 . . 2 . 2 Hackware 17 | . . . . . . . . . . . . 1 . 3 1 . 1 1 2 1 3 4 Protection 39 | . 1 . 4 1 3 . 1 5 3 . 2 4 . 5 . 4 . . 1 1 2 2 Artifact . | . . . . . . . . . . . . . . . . . . . . . . . Weapon 126 | . 2 . 14 4 3 3 7 11 7 2 8 6 3 12 . 1 3 4 12 . 7 17 Energy Gun 34 | . 2 . 6 2 1 . 4 1 . 2 1 1 . 4 . . 2 1 4 . 1 2 Energy Cannon 46 | . . . 3 . 2 2 . 5 3 . 5 3 2 3 . 1 . 1 4 . 3 9 Ballistic Gun 7 | . . . 3 1 . . . 1 . . . . 1 1 . . . . . . . . Ballistic Cannon 4 | . . . 1 . . . . 2 1 . . . . . . . . . . . . . Launcher 7 | . . . . . . . 1 2 2 . 1 . . . . . . 1 . . . . Special Weapon 22 | . . . . . . . . . . . 1 2 . 4 . . 1 1 4 . 3 6 Impact Weapon 5 | . . . 1 1 . 1 1 . 1 . . . . . . . . . . . . . Slashing Weapon . | . . . . . . . . . . . . . . . . . . . . . . . Piercing Weapon . | . . . . . . . . . . . . . . . . . . . . . . . Special Melee Weapon 1 | . . . . . . . 1 . . . . . . . . . . . . . . . Unidentified Prototypes 9 | . . . . . . . . 3 . . . 2 . 1 . . . . . 1 . 2 Corrupted Parts 1 | . . . . . . . . . . . . . . . . . . . . . 1 . System Corruption 1 | . . . . . . . . . . . . . . . . . . . . . 1 . Parts Lost 45 | . . . 1 . . . 1 2 7 1 2 . . . . . 1 1 1 . 2 26 Power 4 | . . . . . . . . . 1 . . . . . . . . . . . . 3 Propulsion 7 | . . . . . . . . . 3 . . . . . . . . . . . . 4 Utility 22 | . . . . . . . 1 1 1 1 2 . . . . . 1 1 1 . 1 12 Weapon 12 | . . . 1 . . . . 1 2 . . . . . . . . . . . 1 7 Highest Loss Streak 18 | . . . 1 . . . 1 2 2 1 1 . . . . . 1 1 1 . 1 18 Average Slot Usage (%) 96 | . 99 100 99 100 100 100 99 99 99 99 99 99 93 93 88 88 86 85 89 95 96 81 Engine 3 | . 3 . . . . . . 4 6 7 7 5 6 5 4 5 5 5 3 . . . Core 2 | . 8 12 10 8 8 8 8 2 . . . . . . . . . . . . . . Treads 5 | . 10 . . . . . . . 3 21 21 24 . 1 1 . . . . . . . Wheel 12 | . 14 25 20 16 16 16 16 21 16 . . . 18 14 9 11 11 11 12 15 16 8 Device 21 | . 6 12 12 25 25 25 24 29 28 27 22 25 30 24 19 20 14 15 16 16 14 11 Storage 6 | . 12 12 10 8 8 8 8 7 7 7 7 6 6 5 5 5 5 5 5 5 5 8 Processor 3 | . . . 7 8 8 8 8 3 . . . . . . . . 4 5 5 8 10 8 Hackware 6 | . . . . . . . . . . . . 3 . 13 18 22 22 23 22 25 23 19 Protection 10 | . 17 12 9 8 8 8 8 8 13 14 19 13 12 11 10 6 5 2 5 5 6 6 Energy Gun 8 | . 25 25 18 3 7 5 3 3 . 7 9 6 6 8 11 11 11 8 7 10 7 7 Energy Cannon 9 | . . . 1 16 16 16 16 15 17 11 10 11 11 6 . 4 . 1 4 . 5 3 Naked Turns 11 | . . . . . . . . . . . . . . . . . . . . . . 11 Heaviest Build 150 | 18 55 55 104 106 114 114 109 127 129 125 126 133 125 130 125 132 126 122 136 135 150 148 Greatest Support 98 | 20 46 24 24 24 24 24 24 36 60 68 68 98 52 70 56 56 56 56 56 52 52 56 Greatest Overweight (x) 43 | . 4 2 4 4 4 4 4 3 10 2 1 10 2 5 5 2 2 2 3 2 3 43 Average Overweight (x) 2 | . 1 2 3 4 4 4 4 3 3 1 1 1 2 3 2 2 2 2 2 2 2 2 Largest Inventory Capacity 25 | . 20 20 25 25 25 25 25 25 25 25 25 25 25 25 25 25 25 25 25 25 25 25 Average Capacity 24 | . 18 20 22 25 25 25 25 25 25 25 25 25 25 25 25 25 25 25 25 25 25 24 Most Carried 25 | . 20 20 25 25 25 25 25 25 25 25 25 25 25 25 25 25 25 25 25 25 25 25 Average Carried 24 | . 14 20 22 24 24 25 25 24 24 24 24 24 24 24 24 24 24 24 24 24 24 22 Final Capacity 25 | 10 20 20 25 25 25 25 25 25 25 25 25 25 25 25 25 25 25 25 25 25 25 5 Final Carried 25 | 7 20 20 25 25 25 25 25 25 24 25 25 24 25 25 25 25 25 25 25 25 25 5 Class Distribution -------------------- 26% | Botlord-Mutant 18% | Botlord-Tank 15% | Hacker-Gunner 13% | Hacker-Mutant 7% | Bothacker-Mutant 5% | Botlord-Gunner 4% | Bothacker-Tank Dominant Class ---------------- Hacker-Mutant | -10/Materials Hacker-Mutant | -10/Mines Hacker-Gunner | -9/Materials Hacker-Gunner | -8/Materials Hacker-Gunner | -8/Garrison Hacker-Gunner | -8/Materials Hacker-Mutant | -8/Garrison Scavenger-Gunner | -7/Factory Bothacker-Mutant | -7/Garrison Bothacker-Mutant | -7/Factory Botlord-Tank | -7/Garrison Botlord-Tank | -6/Factory Botlord-Tank | -6/Garrison Botlord-Tank | -5/Factory Botlord-Mutant | -5/Extension Botlord-Gunner | -5/Cetus Botlord-Mutant | -5/Archives Botlord-Mutant | -5/Hub_04(d) Botlord-Mutant | -5/Garrison Botlord-Mutant | -4/Factory Botlord-Mutant | -4/Garrison Botlord-Mutant | -3/Research Resources | -11 -10 -10 -9 -8 -8 -8 -8 -7 -7 -7 -7 -6 -6 -5 -5 -5 -5 -5 -5 -4 -4 -3 ----------- Run | Scr Mat Min Mat Mat Gar Mat Gar Fac Gar Fac Gar Fac Gar Fac Ext Cet Arc Hub Gar Fac Gar Res Matter Collected 4728 | 200 150 . 507 205 204 60 116 329 359 70 193 245 184 293 153 77 59 197 364 46 360 357 Remotely . | . . . . . . . . . . . . . . . . . . . . . . . Salvage Created 18782 | . 304 90 1375 900 1571 333 1123 1595 1280 435 1157 1590 660 1124 316 382 80 585 967 16 1114 1785 Parts 777 | . 17 5 93 45 49 21 52 85 34 31 34 55 15 50 10 14 12 31 36 1 41 46 Haulers Intercepted 12 | . 1 . 4 3 . . . 3 . . . . . . . . . 1 . . . . Recyclers Shooed 11 | . . . 2 2 . 1 . . . 1 . 2 . 1 1 . . . . . . 1 Parts Field Recycled . | . . . . . . . . . . . . . . . . . . . . . . . Retrieved Matter . | . . . . . . . . . . . . . . . . . . . . . . . Parts Self-Destructed . | . . . . . . . . . . . . . . . . . . . . . . . Prevented . | . . . . . . . . . . . . . . . . . . . . . . . Kills | -11 -10 -10 -9 -8 -8 -8 -8 -7 -7 -7 -7 -6 -6 -5 -5 -5 -5 -5 -5 -4 -4 -3 ------- Run | Scr Mat Min Mat Mat Gar Mat Gar Fac Gar Fac Gar Fac Gar Fac Ext Cet Arc Hub Gar Fac Gar Res Combat Hostiles Destroyed 321 | . 8 7 30 16 18 8 23 26 25 8 19 19 15 18 6 8 . 5 18 1 15 28 Guns 143 | . 6 7 29 5 8 2 7 5 . 6 7 6 6 12 4 5 . 2 7 1 7 11 Cannons 146 | . . . 1 10 10 6 15 19 21 2 7 11 8 4 . 2 . 2 10 . 7 11 AOE 10 | . 2 . . . . . 1 . 4 . 3 . . . . . . . . . . . Classes Destroyed 21 | . 4 1 5 2 1 . 1 4 . . . . . . . . . . . . . 3 Worker 23 | . . . 3 . . 3 . 4 . 3 . . . . . . . 10 . . . . Builder 6 | . . . 1 . . . . . . 1 . . . 2 . . . 1 . . . 1 Tunneler 1 | . . . . . . . . 1 . . . . . . . . . . . . . . Hauler 12 | . 1 . 4 3 . . . 3 . . . . . . . . . 1 . . . . Recycler 19 | . . . 2 1 . . . 2 . 1 . 6 . 3 . . . . . . . 4 Mechanic 1 | . . . . . . . . . . . . . . . . . . . . . . 1 Operator 5 | . . . . 1 . . . . . . . 1 . . 1 . 2 . . . . . Watcher 8 | . 2 . 2 . . 1 . 1 . . . 1 . . . . . 1 . . . . Swarmer 77 | . 2 2 5 2 5 4 7 1 2 4 4 4 4 8 3 1 . . 9 1 3 6 Saboteur 1 | . . . . . . . . . . . . . . . . . . . . . . 1 Grunt 99 | . 6 2 14 10 8 1 4 10 12 . 8 3 6 1 . . . 2 4 . 4 4 Brawler 17 | . . . 1 1 2 1 5 1 1 . 2 . 1 . . . . . . . 2 . Duelist 12 | . . . . 1 . . 1 3 1 . . . 2 . . . . . . . 3 1 Protector 1 | . . . . . . . . 1 . . . . . . . . . . . . . . Sentry 49 | . . . 10 2 2 2 2 3 6 3 3 3 2 4 2 . . 1 1 . 1 2 Specialist 2 | . . . . . . . . 1 . . . . . . . . . . . . 1 . Hunter 23 | . . . . . . . 4 2 3 1 2 4 . 2 . 2 . . 1 . . 2 Programmer 28 | . . . . . . . . 4 . . . 5 . 3 . 2 . 2 2 . . 10 Behemoth 4 | . . . . . 1 . . . . . . . . . 1 . . . 1 . 1 . Cetus Guard 3 | . . . . . . . . . . . . . . . . 3 . . . . . . Executioner 2 | . . . . . . . . . . . . . . . . . . . . . . 2 Assembled 3 | . . 3 . . . . . . . . . . . . . . . . . . . . Best Kill Streak 11 | . 3 2 6 9 5 3 6 8 4 7 4 4 5 4 2 3 1 9 5 1 3 11 Combat Bots Only 9 | . 2 2 5 9 5 3 6 3 4 4 4 3 5 4 2 3 . 2 5 1 3 8 Max Kills in Single Turn 9 | . 2 1 2 2 2 1 2 3 1 3 3 2 1 2 1 1 1 9 2 1 2 2 Gunslinging 1 | . . . . . . . . . . . . . . . . . . . 1 . . . Exploded 3 | . 2 . . . . . 1 . 1 . 3 . . . . . . . . . . . Melee . | . . . . . . . . . . . . . . . . . . . . . . . Uniques/NPCs Destroyed . | . . . . . . . . . . . . . . . . . . . . . . . Combat | -11 -10 -10 -9 -8 -8 -8 -8 -7 -7 -7 -7 -6 -6 -5 -5 -5 -5 -5 -5 -4 -4 -3 -------- Run | Scr Mat Min Mat Mat Gar Mat Gar Fac Gar Fac Gar Fac Gar Fac Ext Cet Arc Hub Gar Fac Gar Res Damage Taken 13245 | . 231 190 459 360 287 68 377 638 935 267 380 760 276 949 184 470 49 228 564 66 962 4545 Core 2196 | . 46 50 47 15 24 4 87 44 85 14 41 79 14 62 26 61 . 30 54 27 83 1303 Absorbed by Shields 220 | . . . . . 7 . . . . . 12 . . . 115 32 . . . . 54 . Reduced by Siege Mode 12 | . . . . . . . . . . . . . . 12 . . . . . . . . Core Remaining (%) 81 | 100 . 61 88 . . . 76 . . . 73 . 89 . . . . . 76 . 90 . Volleys Fired 1253 | . 19 14 75 39 121 14 77 69 81 15 114 60 56 77 21 20 29 22 102 5 109 114 Largest 3 | . 2 2 3 3 3 3 3 3 3 3 3 3 3 3 2 3 3 3 3 2 3 3 Hottest 415 | . 130 130 159 201 245 245 201 235 260 250 260 260 260 415 181 271 271 275 286 194 289 291 Shots Fired 2566 | . 38 28 178 108 271 39 176 187 193 38 195 147 115 133 39 55 36 33 159 6 173 219 Gun 973 | . 38 28 168 38 54 11 37 29 . 18 94 46 46 61 36 38 7 17 33 2 65 107 Cannon 1426 | . . . 10 70 217 28 137 158 188 20 100 98 69 65 . 16 3 8 85 . 57 97 Launcher 14 | . . . . . . . 2 . 5 . 1 . . . . . . 6 . . . . Special 153 | . . . . . . . . . . . . 3 . 7 3 1 26 2 41 4 51 15 Kinetic 137 | . . . 74 21 8 . . 11 5 . . . 11 7 . . . . . . . . Thermal 2368 | . 38 28 104 87 263 39 174 176 183 38 194 144 104 119 36 54 36 25 151 2 169 204 Explosive 14 | . . . . . . . 2 . 5 . 1 . . . . . . 6 . . . . Electromagnetic . | . . . . . . . . . . . . . . . . . . . . . . . Robot Hit Streak 63 | . 13 21 48 25 30 20 27 36 29 19 30 34 63 43 48 34 8 19 42 30 45 57 Robot Miss Streak 5 | . 3 5 3 2 4 2 3 5 2 3 2 4 3 2 1 1 2 1 2 1 2 1 Penetration Max . | . . . . . . . . . . . . . . . . . . . . . . . Secondary Targets 4 | . . . 1 . . . . . . . . . . . 1 . . . 1 . . 1 Max Gunslinging Chain 1 | . . . 1 . . . . . . . . . . . 1 . . . 1 . . 1 Shots Hit Robots 1766 | . 24 24 132 91 177 27 89 135 115 33 90 120 76 89 34 49 30 21 108 6 128 168 Core Hits 1050 | . 26 38 158 51 90 23 66 89 45 28 60 60 36 50 16 24 20 29 43 2 46 50 Critical Kills 10 | . . . 2 1 . . . 3 . . 1 . . . . . . . 1 . . 2 Critical Parts Destroyed 1 | . . . . . . . . . . . . . 1 . . . . . . . . . Critical Strikes 30 | . 3 . 2 1 . . . 3 . . 1 . 1 . 1 . 2 . 7 . 2 7 Burn 9 | . 3 . . . . . . . . . . . . . 1 . . . . . . 5 Meltdown 8 | . . . . 1 . . . 3 . . 1 . . . . . . . 1 . . 2 Destroy 3 | . . . 2 . . . . . . . . . 1 . . . . . . . . . Sever 10 | . . . . . . . . . . . . . . . . . 2 . 6 . 2 . Melee Attacks 24 | . . . 3 2 . 5 1 . 13 . . . . . . . . . . . . . Impact 24 | . . . 3 2 . 5 1 . 13 . . . . . . . . . . . . . Slashing . | . . . . . . . . . . . . . . . . . . . . . . . Piercing . | . . . . . . . . . . . . . . . . . . . . . . . Sneak Attacks 2 | . . . . 1 . 1 . . . . . . . . . . . . . . . . Combat Hostiles . | . . . . . . . . . . . . . . . . . . . . . . . Follow-up Attacks . | . . . . . . . . . . . . . . . . . . . . . . . Damage Inflicted 51824 | . 744 365 2318 1943 4730 747 2288 3691 3653 767 2647 3815 2323 3155 1222 1867 636 2085 3061 65 3701 6001 Guns 19656 | . 333 365 2155 583 638 163 368 498 . 455 959 1263 928 1946 1222 1271 204 520 778 65 1544 3398 Cannons 27635 | . . . 163 1294 4092 453 1532 3193 3249 312 1526 2552 1395 1209 . 596 110 218 1745 . 1412 2584 Explosions 2712 | . 411 . . . . . 388 . 404 . 162 . . . . . . 1347 . . . . Melee 197 | . . . . 66 . 131 . . . . . . . . . . . . . . . . Ramming 19 | . . . . . . . . . . . . . . . . . . . . . . 19 Kinetic 1605 | . . . 683 272 52 . . 251 52 . . . 188 107 . . . . . . . . Thermal 47702 | . 744 365 1635 1605 4678 616 1900 3440 3197 767 2485 3815 2135 3048 1222 1867 636 738 3061 65 3701 5982 Explosive 1225 | . . . . . . . 388 . 404 . 162 . . . . . . 271 . . . . Electromagnetic 1076 | . . . . . . . . . . . . . . . . . . 1076 . . . . Impact 197 | . . . . 66 . 131 . . . . . . . . . . . . . . . . Slashing . | . . . . . . . . . . . . . . . . . . . . . . . Piercing . | . . . . . . . . . . . . . . . . . . . . . . . Highest Corruption 11 | . 1 1 2 . . . . . . . . 2 2 1 1 3 3 3 5 . 3 11 Average Corruption 2 | . 1 1 1 . . . . . . . . 1 2 1 1 2 2 1 4 . 2 6 Corruption Purged 3 | . . . . . . . . . . . . . . . . . 3 . . . . . Effects 117 | . . 2 12 . . . . . . . . 4 11 . 4 6 4 3 41 . 10 20 Message Errors 33 | . . 1 6 . . . . . . . . 2 2 . 1 2 2 . 9 . 5 3 Matter Fused 17 | . . . . . . . . . . . . . . . . . 1 1 10 . . 5 Heat Flow Errors 17 | . . . 2 . . . . . . . . 1 3 . . 1 1 . 4 . 3 2 Energy Discharges 16 | . . . 1 . . . . . . . . 1 4 . 3 1 . . 4 . 1 1 Data Loss (minor) 23 | . . 1 3 . . . . . . . . . 2 . . 2 . 2 6 . 1 6 Data Loss (major) 4 | . . . . . . . . . . . . . . . . . . . 3 . . 1 Misfires 3 | . . . . . . . . . . . . . . . . . . . 3 . . . Misdirections 1 | . . . . . . . . . . . . . . . . . . . . . . 1 Weapon Failures 3 | . . . . . . . . . . . . . . . . . . . 2 . . 1 Overload Shots 128 | . . . . . . . . . . . . 39 36 20 . . . . . . . 33 Effects 4 | . . . . . . . . . . . . 1 1 . . . . . . . . 2 Energy Bleed 2 | . . . . . . . . . . . . . 1 . . . . . . . . 1 Heat Surge 1 | . . . . . . . . . . . . . . . . . . . . . . 1 Short Circuit 1 | . . . . . . . . . . . . 1 . . . . . . . . . . Overflow Damage 1314 | . 40 . . 1 118 74 6 31 71 16 15 305 93 75 . 59 . 123 77 . 31 179 Projectiles 1076 | . . . . 1 118 5 6 31 65 16 15 305 93 75 . 59 . . 77 . 31 179 Explosions 169 | . 40 . . . . . . . 6 . . . . . . . . 123 . . . . Melee 69 | . . . . . . 69 . . . . . . . . . . . . . . . . Knockbacks 4 | . . . . . . . . . 2 . . . . . . . . . . . . 2 Impact 1 | . . . . . . . . . . . . . . . . . . . . . . 1 Kinetic 2 | . . . . . . . . . 2 . . . . . . . . . . . . . Secondary 1 | . . . . . . . . . . . . . . . . . . . . . . 1 Self-Inflicted Damage 112 | . 41 . . . . . . . . . . . . . . . . 62 . . . 9 Shots 2 | . 1 . . . . . . . . . . . . . . . . 1 . . . . Rammed 1 | . . . . . . . . . . . . . . . . . . . . . . 1 Targets Rammed 1 | . . . . . . . . . . . . . . . . . . . . . . 1 Kicked . | . . . . . . . . . . . . . . . . . . . . . . . Crushed . | . . . . . . . . . . . . . . . . . . . . . . . Highest Temperature 333 | . 318 240 261 207 199 273 87 333 240 190 194 194 196 238 51 198 124 192 196 39 195 281 Average Temperature 80 | . 113 107 76 109 64 80 24 73 91 76 71 62 79 91 17 114 54 83 70 23 83 94 Received Heat Transfer 2935 | . 162 24 291 279 192 63 108 303 27 60 270 126 57 108 29 . 9 36 63 27 185 516 Effects 4 | . 1 . 3 . . . . . . . . . . . . . . . . . . . Interference 3 | . . . 3 . . . . . . . . . . . . . . . . . . . Short Circuit 1 | . 1 . . . . . . . . . . . . . . . . . . . . . Siege Activations 3 | . . . . . . . . . . . . . . 3 . . . . . . . . Total Turns 61 | . . . . . . . . . . . . . . 61 . . . . . . . . Longest Duration 41 | . . . . . . . . . . . . . . 41 . . . . . . . . Robots Corrupted . | . . . . . . . . . . . . . . . . . . . . . . . Combat Hostiles . | . . . . . . . . . . . . . . . . . . . . . . . Parts Fried 9 | . . . . . . 3 . . . . . . . . 1 . . 5 . . . . Impact Corruptions 2 | . . . . . . 2 . . . . . . . . . . . . . . . . Robots Melted 27 | . . . . 1 1 . . 4 . . 2 3 1 2 2 1 . 1 1 . 1 7 Combat Hostiles 22 | . . . . 1 . . . 2 . . 2 2 1 2 2 1 . 1 1 . 1 6 Parts Melted 154 | . 1 . 3 4 6 1 8 14 17 2 14 21 5 9 5 6 . 2 8 . 5 23 Heat Transferred 65222 | . 1168 475 2136 2721 5882 770 3225 4880 4471 1484 3817 5380 3043 3507 1729 2028 1138 796 4415 87 4526 7544 Parts Sabotaged . | . . . . . . . . . . . . . . . . . . . . . . . Parts Stolen . | . . . . . . . . . . . . . . . . . . . . . . . Parts Stripped . | . . . . . . . . . . . . . . . . . . . . . . . Power Chain Reactions . | . . . . . . . . . . . . . . . . . . . . . . . Missiles Intercepted . | . . . . . . . . . . . . . . . . . . . . . . . Alert | -11 -10 -10 -9 -8 -8 -8 -8 -7 -7 -7 -7 -6 -6 -5 -5 -5 -5 -5 -5 -4 -4 -3 ------- Run | Scr Mat Min Mat Mat Gar Mat Gar Fac Gar Fac Gar Fac Gar Fac Ext Cet Arc Hub Gar Fac Gar Res Peak Influence 1361 | . 139 132 345 355 701 497 813 755 1000 531 742 478 1014 559 300 275 131 706 1361 689 1295 1055 Initial 546 | . . 2 36 14 100 250 61 316 273 390 52 289 216 395 27 . . . 375 530 371 546 Average 426 | . 35 73 117 182 478 198 458 299 803 329 516 135 625 231 121 106 94 260 1103 568 884 692 Maximum Alert Level 4 | . . . 1 1 3 2 3 3 3 2 3 2 3 2 1 1 . 3 4 2 4 3 Low Security (%) 37 | . 100 100 82 53 11 67 12 37 . 13 16 80 . 51 77 90 100 46 . . . . Level 1 17 | . . . 17 46 20 24 26 36 9 73 7 15 14 29 22 9 . 30 3 . 2 . Level 2 24 | . . . . . 64 8 37 22 17 12 48 4 53 18 . . . 22 8 100 38 64 Level 3 15 | . . . . . 2 . 24 3 72 . 28 . 31 . . . . . 24 . 37 35 Level 4 5 | . . . . . . . . . . . . . . . . . . . 63 . 21 . Level 5 . | . . . . . . . . . . . . . . . . . . . . . . . High Security . | . . . . . . . . . . . . . . . . . . . . . . . Max Security . | . . . . . . . . . . . . . . . . . . . . . . . Squads Dispatched 48 | . . . 3 5 . . . 7 . 1 . 9 . 6 1 . . 4 . 1 . 11 Investigation 2 | . . . 1 . . . . . . . . . . . . . . 1 . . . . Extermination 16 | . . . . . . . . 4 . 1 . 5 . 3 . . . 1 . . . 2 Reinforcement 20 | . . . 2 2 . . . 3 . . . 4 . 3 1 . . 2 . . . 3 Assault 4 | . . . . . . . . . . . . . . . . . . . . 1 . 3 Garrison 6 | . . . . 3 . . . . . . . . . . . . . . . . . 3 Intercept . | . . . . . . . . . . . . . . . . . . . . . . . Construction Impeded 2 | . . . . . . . . 1 . . . . . . . . . 1 . . . . Haulers Reinforced 2 | . . . . . . . . 1 . . . 1 . . . . . . . . . . Cargo Convoy Interrupts 3 | . . . . . . . . 1 . . . 1 . . . . . . . . . 1 Stealth | -11 -10 -10 -9 -8 -8 -8 -8 -7 -7 -7 -7 -6 -6 -5 -5 -5 -5 -5 -5 -4 -4 -3 --------- Run | Scr Mat Min Mat Mat Gar Mat Gar Fac Gar Fac Gar Fac Gar Fac Ext Cet Arc Hub Gar Fac Gar Res Distress Signals 15 | . . . 3 3 . 2 . 2 . 1 . . . 1 . 1 . 2 . . . . Communications Jammed . | . . . . . . . . . . . . . . . . . . . . . . . Distress Signals . | . . . . . . . . . . . . . . . . . . . . . . . Times Spotted 546 | . 14 11 49 22 19 17 25 38 28 13 18 23 15 29 21 13 33 14 29 5 34 76 Peak Tracking Total 14 | . 4 6 3 6 3 5 6 7 4 3 5 3 4 5 4 4 2 6 5 4 9 14 Tactical Retreats 25 | . . . 3 . . . 1 1 . 2 1 1 4 3 . . . 2 2 . 1 4 Traps | -11 -10 -10 -9 -8 -8 -8 -8 -7 -7 -7 -7 -6 -6 -5 -5 -5 -5 -5 -5 -4 -4 -3 ------- Run | Scr Mat Min Mat Mat Gar Mat Gar Fac Gar Fac Gar Fac Gar Fac Ext Cet Arc Hub Gar Fac Gar Res Traps Triggered 58 | . 2 . 3 . 1 . 1 1 6 . 9 1 5 1 3 . . 1 9 . 15 . Indirectly . | . . . . . . . . . . . . . . . . . . . . . . . Trap Hack Attempts 1 | . . . . . . . 1 . . . . . . . . . . . . . . . Triggered . | . . . . . . . . . . . . . . . . . . . . . . . Disarmed 1 | . . . . . . . 1 . . . . . . . . . . . . . . . Reprogrammed . | . . . . . . . . . . . . . . . . . . . . . . . Reused . | . . . . . . . . . . . . . . . . . . . . . . . Traps Extracted . | . . . . . . . . . . . . . . . . . . . . . . . Installed . | . . . . . . . . . . . . . . . . . . . . . . . Triggered 1 | . . . . . . . . . . . . 1 . . . . . . . . . . Machines | -11 -10 -10 -9 -8 -8 -8 -8 -7 -7 -7 -7 -6 -6 -5 -5 -5 -5 -5 -5 -4 -4 -3 ---------- Run | Scr Mat Min Mat Mat Gar Mat Gar Fac Gar Fac Gar Fac Gar Fac Ext Cet Arc Hub Gar Fac Gar Res Machines Disabled 69 | . 1 . 2 1 4 3 6 1 8 . 4 2 6 . 1 . 2 11 9 . 8 . Max in Single Turn 11 | . 1 . 1 1 1 1 2 1 1 . 1 1 2 . . . 1 11 2 . 2 . Garrison Access 2 | . . . . . . . . . . . . . . 1 . . . . . . . 1 Garrison Relay 28 | . . . . . 4 . 4 . 4 . 4 . 4 . . . . . 4 . 4 . Phase Generator 3 | . . . . . . . . . . . . . 1 . . . . . 1 . 1 . Network Hub 2 | . . . . . . . . . . . . . . . . . . 2 . . . . Machines Sabotaged . | . . . . . . . . . . . . . . . . . . . . . . . Garrisons Compromised 1 | . . . . . . . . . . . . 1 . . . . . . . . . . Overloaded Fab Kills . | . . . . . . . . . . . . . . . . . . . . . . . Fab Network Shutdowns 1 | . . . . . . . . . . . . 1 . . . . . . . . . . Hacking | -11 -10 -10 -9 -8 -8 -8 -8 -7 -7 -7 -7 -6 -6 -5 -5 -5 -5 -5 -5 -4 -4 -3 --------- Run | Scr Mat Min Mat Mat Gar Mat Gar Fac Gar Fac Gar Fac Gar Fac Ext Cet Arc Hub Gar Fac Gar Res Machines Accessed 84 | . 8 . 14 3 . 8 . 9 . 2 . 11 . 7 10 2 . 4 . 2 . 4 Terminals 52 | . 7 . 10 2 . 6 . 3 . 1 . 3 . 3 10 2 . 3 . 1 . 1 Fabricators 6 | . . . . . . . . 1 . . . 3 . 1 . . . . . . . 1 Repair Stations 8 | . 1 . 2 . . . . 2 . . . 3 . . . . . . . . . . Recycling Units 1 | . . . . . . . . . . . . . . . . . . . . . . 1 Scanalyzers 8 | . . . 2 . . 1 . 2 . . . 1 . 2 . . . . . . . . Garrison Access 9 | . . . . 1 . 1 . 1 . 1 . 1 . 1 . . . 1 . 1 . 1 Total Hacks 228 | . 29 . 53 8 . 24 . 34 . 3 . 23 . 12 16 3 . 6 . 4 . 13 Successful 146 | . 16 . 38 7 . 18 . 23 . 1 . 14 . 6 9 3 . 3 . 2 . 6 Failed 82 | . 13 . 15 1 . 6 . 11 . 2 . 9 . 6 7 . . 3 . 2 . 7 Catastrophic 16 | . . . 4 . . . . 1 . 2 . 2 . 1 2 . . 2 . 1 . 1 Database Lockouts . | . . . . . . . . . . . . . . . . . . . . . . . Manual 93 | . 19 . 29 2 . 11 . 5 . 2 . 2 . 4 6 1 . 5 . 3 . 4 Terminals 147 | . 27 . 39 7 . 21 . 8 . 2 . 8 . 5 16 3 . 5 . 3 . 3 Fabricators 18 | . . . . . . . . 4 . . . 7 . 2 . . . . . . . 5 Repair Stations 18 | . 2 . 8 . . . . 3 . . . 5 . . . . . . . . . . Recycling Units 4 | . . . . . . . . . . . . . . . . . . . . . . 4 Scanalyzers 32 | . . . 6 . . 2 . 18 . . . 2 . 4 . . . . . . . . Garrison Access 9 | . . . . 1 . 1 . 1 . 1 . 1 . 1 . . . 1 . 1 . 1 Terminal Hacks 65 | . 13 . 20 5 . 12 . . . . . 2 . 1 8 3 . 1 . . . . Record 2 | . . . . . . . . . . . . . . . . 2 . . . . . . Part Schematic 3 | . 1 . . . . 1 . . . . . . . . 1 . . . . . . . Robot Analysis 1 | . . . . . . 1 . . . . . . . . . . . . . . . . Prototype ID Bank 24 | . 10 . 10 2 . 1 . . . . . . . . 1 . . . . . . . Open Door 7 | . . . . . . . . . . . . . . 1 5 1 . . . . . . Branch Access Points 1 | . . . 1 . . . . . . . . . . . . . . . . . . . Machine Index 1 | . . . . 1 . . . . . . . . . . . . . . . . . . Terminal Index 2 | . . . 1 . . 1 . . . . . . . . . . . . . . . . Garrison Index 2 | . . . . . . 1 . . . . . 1 . . . . . . . . . . Alert Level 1 | . . . 1 . . . . . . . . . . . . . . . . . . . Unreport Threat 2 | . . . . . . 2 . . . . . . . . . . . . . . . . Locate Traps 2 | . . . . . . 1 . . . . . . . . 1 . . . . . . . Dispatch Records 2 | . . . 1 . . 1 . . . . . . . . . . . . . . . . Patrol Status 1 | . . . . 1 . . . . . . . . . . . . . . . . . . Recall Reinforcements 1 | . . . 1 . . . . . . . . . . . . . . . . . . . Hauler Manifests 6 | . 1 . 2 1 . 1 . . . . . 1 . . . . . . . . . . Registered Components 1 | . . . 1 . . . . . . . . . . . . . . . . . . . Registered Prototypes 1 | . 1 . . . . . . . . . . . . . . . . . . . . . Zone Layout 5 | . . . 2 . . 2 . . . . . . . . . . . 1 . . . . Fabricator Hacks 11 | . . . . . . . . 3 . . . 5 . 1 . . . . . . . 2 Network Status 1 | . . . . . . . . 1 . . . . . . . . . . . . . . Load Schematic 6 | . . . . . . . . 1 . . . 3 . 1 . . . . . . . 1 Build 4 | . . . . . . . . 1 . . . 2 . . . . . . . . . 1 Repair Station Hacks 14 | . 2 . 8 . . . . . . . . 4 . . . . . . . . . . Scan Component 7 | . 1 . 4 . . . . . . . . 2 . . . . . . . . . . Repair 7 | . 1 . 4 . . . . . . . . 2 . . . . . . . . . . Recycling Unit Hacks 2 | . . . . . . . . . . . . . . . . . . . . . . 2 Retrieve Components 2 | . . . . . . . . . . . . . . . . . . . . . . 2 Scanalyzer 28 | . . . 5 . . 2 . 17 . . . 1 . 3 . . . . . . . . Insert Component 15 | . . . 3 . . 1 . 8 . . . 1 . 2 . . . . . . . . Analyze 13 | . . . 2 . . 1 . 9 . . . . . 1 . . . . . . . . Garrison Access Hacks 9 | . . . . 1 . 1 . 1 . 1 . 1 . 1 . . . 1 . 1 . 1 Unlock Access 8 | . . . . 1 . 1 . 1 . 1 . 1 . . . . . 1 . 1 . 1 Seal Access 1 | . . . . . . . . . . . . . . 1 . . . . . . . . Unauthorized Hacks 17 | . 1 . 5 1 . 3 . 2 . . . 1 . . 1 . . 1 . 1 . 1 Terminals 16 | . 1 . 5 1 . 3 . 2 . . . 1 . . 1 . . 1 . 1 . . Assimilate 2 | . . . 2 . . . . . . . . . . . . . . . . . . . Botnet 11 | . 1 . 2 1 . 2 . 1 . . . 1 . . 1 . . 1 . 1 . . Operators 3 | . . . 1 . . 1 . 1 . . . . . . . . . . . . . . Fabricators 1 | . . . . . . . . . . . . . . . . . . . . . . 1 Prioritize 1 | . . . . . . . . . . . . . . . . . . . . . . 1 Repair Stations . | . . . . . . . . . . . . . . . . . . . . . . . Recycling Units . | . . . . . . . . . . . . . . . . . . . . . . . Scanalyzers . | . . . . . . . . . . . . . . . . . . . . . . . Garrison Access . | . . . . . . . . . . . . . . . . . . . . . . . Data Cores Recovered . | . . . . . . . . . . . . . . . . . . . . . . . Used . | . . . . . . . . . . . . . . . . . . . . . . . Hacking Detections 69 | . 7 . 14 2 . 7 . 8 . 1 . 10 . 5 7 1 . 3 . 1 . 3 Full Trace Events 2 | . . . 1 . . . . . . . . . . . . . . 1 . . . . Feedback Events 1 | . . . . . . . . . . . . . . . . . . 1 . . . . Corruption 1 | . . . . . . . . . . . . . . . . . . 1 . . . . Feedback Blocked . | . . . . . . . . . . . . . . . . . . . . . . . Robot Schematics Acquired . | . . . . . . . . . . . . . . . . . . . . . . . Robots Built . | . . . . . . . . . . . . . . . . . . . . . . . Matter . | . . . . . . . . . . . . . . . . . . . . . . . Time . | . . . . . . . . . . . . . . . . . . . . . . . Total Robot Build Rating . | . . . . . . . . . . . . . . . . . . . . . . . Part Schematics Acquired 14 | . 1 . 2 . . 2 . 8 . . . . . 1 . . . . . . . . Parts Built 8 | . . . . . . . . 2 . . . 4 . . . . . . . . . 2 Matter 584 | . . . . . . . . 146 . . . 270 . . . . . . . . . 168 Time 199 | . . . . . . . . 36 . . . 135 . . . . . . . . . 28 Total Part Build Rating 24 | . . . . . . . . 6 . . . 10 . . . . . . . . . 8 Parts Repaired 7 | . 1 . 4 . . . . . . . . 2 . . . . . . . . . . Time 216 | . 44 . 115 . . . . . . . . 57 . . . . . . . . . . Parts Recycled . | . . . . . . . . . . . . . . . . . . . . . . . Recycled Matter . | . . . . . . . . . . . . . . . . . . . . . . . Retrieved Matter . | . . . . . . . . . . . . . . . . . . . . . . . Retrieved Components 20 | . . . . . . . . . . . . . . . . . . . . . . 20 Parts Scanalyzed 12 | . . . 2 . . 1 . 8 . . . . . 1 . . . . . . . . Part Schematics Acquired 12 | . . . 2 . . 1 . 8 . . . . . 1 . . . . . . . . Parts Damaged 1 | . . . . . . . . . . . . . . 1 . . . . . . . . Bothacking | -11 -10 -10 -9 -8 -8 -8 -8 -7 -7 -7 -7 -6 -6 -5 -5 -5 -5 -5 -5 -4 -4 -3 ------------ Run | Scr Mat Min Mat Mat Gar Mat Gar Fac Gar Fac Gar Fac Gar Fac Ext Cet Arc Hub Gar Fac Gar Res Used RIF Installer 7 | . . . . . 1 . 1 . 1 . 1 . 1 . . . . . 1 . 1 . Coupler Efficiency 1 | . . . . . . . . . . . . . 1 . . . . . . . . . Hotswap 1 | . . . . . . . 1 . . . . . . . . . . . . . . . Zone Cloak 1 | . . . . . . . . . . . . . . . . . . . 1 . . . Robot Detection 1 | . . . . . . . . . 1 . . . . . . . . . . . . . Structural Interface 1 | . . . . . . . . . . . . . . . . . . . . . 1 . Program Shield 1 | . . . . . . . . . . . 1 . . . . . . . . . . . Robots Hacked 41 | . . . . . . . . . . . . 1 . 5 3 1 . 2 8 4 4 13 Non-combat 10 | . . . . . . . . . . . . 1 . 2 . . . 2 . 3 . 2 Combat 31 | . . . . . . . . . . . . . . 3 3 1 . . 8 1 4 11 Robot Hacks Applied 43 | . . . . . . . . . . . . 1 . 6 3 1 . 2 8 4 4 14 parse_system 3 | . . . . . . . . . . . . . . 1 . 1 . . . . . 1 ignore_repairs 1 | . . . . . . . . . . . . . . . . . . . . . . 1 drop_inventory 6 | . . . . . . . . . . . . 1 . 1 . . . 2 . 1 . 1 ignore_parts 2 | . . . . . . . . . . . . . . . . . . . . 2 . . scatter_targeting 2 | . . . . . . . . . . . . . . 1 . . . . . . . 1 spike_heat 1 | . . . . . . . . . . . . . . . 1 . . . . . . . overload_power 1 | . . . . . . . . . . . . . . 1 . . . . . . . . amplify_resonance 7 | . . . . . . . . . . . . . . 1 . . . . . . . 6 overwrite_iff 12 | . . . . . . . . . . . . . . 1 2 . . . 2 . 3 4 streamctrl_high 1 | . . . . . . . . . . . . . . . . . . . . . 1 . formatsys_high 7 | . . . . . . . . . . . . . . . . . . . 6 1 . . Relay Couplers Released 119 | . . . . . 15 . 17 . 15 . 16 . 18 . . . . . 17 . 15 6 Machine Destruction 115 | . . . . . 15 . 17 . 15 . 16 . 18 . . . . . 17 . 15 2 Programmers 4 | . . . . . . . . . . . . . . . . . . . . . . 4 Attached 16 | . . . . . . . . . . . . 1 . 3 1 . . 1 2 1 3 4 Robots Rewired 5 | . . . . . 3 . . . 2 . . . . . . . . . . . . . Allies Hacked . | . . . . . . . . . . . . . . . . . . . . . . . Hacks Repelled . | . . . . . . . . . . . . . . . . . . . . . . . Allies | -11 -10 -10 -9 -8 -8 -8 -8 -7 -7 -7 -7 -6 -6 -5 -5 -5 -5 -5 -5 -4 -4 -3 -------- Run | Scr Mat Min Mat Mat Gar Mat Gar Fac Gar Fac Gar Fac Gar Fac Ext Cet Arc Hub Gar Fac Gar Res Total Allies 53 | . . . 2 . 3 . . . . . . 18 . 1 8 5 . . 8 1 4 3 Largest Group 18 | . . . 2 2 4 1 1 1 . . . 18 . 1 3 6 6 5 5 6 7 2 Highest-Rated Group 728 | . . . 20 20 124 10 10 10 . . . 728 . 49 230 598 598 475 245 294 350 94 Highest-Rated Ally 156 | . . . 10 10 38 10 10 10 . . . 74 . 49 156 143 123 95 81 49 115 56 Total Orders 65 | . . . 6 7 19 2 8 4 . . . 6 . . . . . 5 4 2 2 . STAY 28 | . . . 3 4 9 1 4 2 . . . . . . . . . 1 2 1 1 . FOLLOW 28 | . . . 3 3 10 1 4 2 . . . . . . . . . 1 2 1 1 . EXPLORE 6 | . . . . . . . . . . . . 5 . . . . . 1 . . . . RETURN 3 | . . . . . . . . . . . . 1 . . . . . 2 . . . . Ally Attacks 254 | . . . . . 9 . . . . . . 4 . 3 57 28 14 41 22 7 58 11 Total Damage 8645 | . . . . . 333 . . . . . . 74 . 144 1830 639 598 1218 795 306 2218 490 Kills 59 | . . . . . 1 . . . . . . 1 . 1 12 4 4 10 6 4 15 1 Allies Corrupted 5 | . . . . . . . . . . . . 1 . . 1 . . 3 . . . . Allies Melted . | . . . . . . . . . . . . . . . . . . . . . . . Intel | -11 -10 -10 -9 -8 -8 -8 -8 -7 -7 -7 -7 -6 -6 -5 -5 -5 -5 -5 -5 -4 -4 -3 ------- Run | Scr Mat Min Mat Mat Gar Mat Gar Fac Gar Fac Gar Fac Gar Fac Ext Cet Arc Hub Gar Fac Gar Res Robot Analysis Total 1 | . . . . . . 1 . . . . . . . . . . . . . . . . Derelict Logs Recovered . | . . . . . . . . . . . . . . . . . . . . . . . Drone Launches 8 | . . . . . . . . . . . . 4 . . 2 . . 2 . . . . Drone Recoveries 2 | . . . . . . . . . . . . . . . . . . 2 . . . . Exploration | -11 -10 -10 -9 -8 -8 -8 -8 -7 -7 -7 -7 -6 -6 -5 -5 -5 -5 -5 -5 -4 -4 -3 ------------- Run | Scr Mat Min Mat Mat Gar Mat Gar Fac Gar Fac Gar Fac Gar Fac Ext Cet Arc Hub Gar Fac Gar Res Turns Passed 28549 | . 1190 291 2118 633 1795 688 1584 1761 1928 930 2370 2884 1078 1842 837 424 477 625 1606 261 2115 1112 Spaces Moved 14290 | 1 689 199 1149 314 854 403 874 1043 975 254 764 969 682 956 491 227 239 367 933 184 1235 488 Core 56 | . . . . . . . . . . . . . . . . . . . . . . 56 Treads 2219 | . 197 . . . . . . . 54 254 764 945 . 5 . . . . . . . . Legs 4 | 1 3 . . . . . . . . . . . . . . . . . . . . . Wheels 12011 | . 489 199 1149 314 854 403 874 1043 921 . . 24 682 951 491 227 239 367 933 184 1235 432 Hover . | . . . . . . . . . . . . . . . . . . . . . . . Flight . | . . . . . . . . . . . . . . . . . . . . . . . Fastest Speed 50 | 120 120 120 120 150 150 150 150 135 135 260 260 123 123 123 130 130 130 130 123 123 120 50 Average Speed 156 | 120 148 120 135 150 150 150 150 135 159 337 260 256 123 150 141 130 130 130 127 123 122 132 Slowest Speed 2200 | 120 260 120 150 150 150 150 150 135 360 360 260 260 123 260 165 130 130 130 140 123 135 2200 Overloaded Moves . | . . . . . . . . . . . . . . . . . . . . . . . Propulsion Burnouts . | . . . . . . . . . . . . . . . . . . . . . . . Robots Hopped . | . . . . . . . . . . . . . . . . . . . . . . . Cave-ins Triggered . | . . . . . . . . . . . . . . . . . . . . . . . Exploration Rate (%) 59 | 2 87 59 98 19 98 54 94 31 77 6 83 30 97 28 76 80 89 48 98 6 97 13 Regions Visited 22 Branch Regions 5 Pre-discovered Areas . | . . . . . . . . . . . . . . . . . . . . . . . Known Exits Taken 15 | 1 1 1 1 1 . 1 . 1 . 1 . 1 . 1 1 1 1 1 . 1 . . Unknown Exits Taken . | . . . . . . . . . . . . . . . . . . . . . . . Scrap Searched . | . . . . . . . . . . . . . . . . . . . . . . . Spaces Dug 103 | . . . 3 1 . 2 1 12 15 . . 6 5 29 . . . 3 3 . 2 21 Terrain Destroyed 804 | . 32 . 3 1 . 9 9 26 30 4 . 26 96 34 1 . . 326 92 . 83 32 Melee 14 | . . . 3 1 . 2 1 . 7 . . . . . . . . . . . . . Projectile 194 | . . . . . . 7 . 26 8 4 . 26 24 34 1 . . 5 18 . 9 32 AOE 596 | . 32 . . . . . 8 . 15 . . . 72 . . . . 321 74 . 74 . Terrain Rammed . | . . . . . . . . . . . . . . . . . . . . . . . Walls Destroyed . | . . . . . . . . . . . . . . . . . . . . . . . Machines Disabled . | . . . . . . . . . . . . . . . . . . . . . . . Actions | -11 -10 -10 -9 -8 -8 -8 -8 -7 -7 -7 -7 -6 -6 -5 -5 -5 -5 -5 -5 -4 -4 -3 --------- Run | Scr Mat Min Mat Mat Gar Mat Gar Fac Gar Fac Gar Fac Gar Fac Ext Cet Arc Hub Gar Fac Gar Res Total 18154 | . 821 223 1582 389 1136 450 998 1261 1188 294 970 1247 826 1244 598 311 343 485 1164 216 1636 772 Wait 1501 | . 67 11 257 18 98 13 23 74 21 17 30 143 32 139 50 50 59 79 49 16 147 108 Move 14261 | . 688 198 1148 313 852 402 872 1042 973 253 762 968 680 955 490 226 238 366 931 183 1233 488 Hop . | . . . . . . . . . . . . . . . . . . . . . . . Pick Up 184 | . 17 . 30 4 9 4 2 16 11 . 11 15 7 13 3 3 3 4 12 3 8 9 Fast Attach 63 | . 4 . 6 . . . 1 9 5 . 1 7 2 4 4 1 3 . 2 1 2 11 Attach 56 | . 2 . 3 3 . . . 5 7 1 1 4 . 3 . . 1 1 5 2 3 15 Detach 14 | . 4 . 1 . . . . 1 1 . . 1 . 2 . . 1 . . . . 3 Swap 241 | . 9 . 24 7 18 6 9 17 12 6 16 18 6 21 4 5 5 7 13 2 25 11 Drop 260 | . 11 . 35 3 17 6 4 28 12 2 18 27 11 22 9 6 4 6 8 3 17 11 Fire 1253 | . 19 14 75 39 121 14 77 69 81 15 114 60 56 77 21 20 29 22 102 5 109 114 Melee 24 | . . . 3 2 . 5 1 . 13 . . . . . . . . . . . . . Ram 2 | . . . . . . . . . . . . . . . . . . . . . . 2 Kick . | . . . . . . . . . . . . . . . . . . . . . . . Crush . | . . . . . . . . . . . . . . . . . . . . . . . Escape Stasis 255 | . . . . . 8 . 8 . 32 . 17 2 32 8 16 . . . 40 . 92 . Rewire 36 | . . . . . 13 . . . 20 . . . . . . . . . 2 1 . . Trap 1 | . . . . . . . 1 . . . . . . . . . . . . . . . Miscellaneous 3 | . . . . . . . . . . . . 2 . . 1 . . . . . . . Route ------- -11/Scrapyard -10/Materials (discovered 4 exits: *Mat x3 / *Min) -10/Mines -9/Materials (discovered 4 exits: *Mat x3 / *Min) -8/Materials -8/Garrison (discovered 3 exits: *Mat x3) -8/Materials (discovered 2 exits: *Fac / Gar) -8/Garrison (discovered 3 exits: *Fac x3) -7/Factory -7/Garrison (discovered 3 exits: *Fac x3) -7/Factory -7/Garrison (discovered 2 exits: *Fac x2) -6/Factory (discovered 4 exits: *Fac x2 / *Low / Gar) -6/Garrison (discovered 3 exits: *Fac x3) -5/Factory (discovered 3 exits: *Fac / *Upp / *Ext) -5/Extension (discovered 2 exits: *Fac / *Cet) -5/Cetus -5/Archives (discovered 3 exits: *Fac / *Hub x2) -5/Hub_04(d) (discovered 4 exits: *Fac x3 / Gar) -5/Garrison (discovered 3 exits: *Fac x3) -4/Factory -4/Garrison (discovered 3 exits: *Res x3) -3/Research History --------- Turn | Location | Event 1 | -11/Scrapyard | Identified exit to Materials 1 | -11/Scrapyard | Discovered exit to Materials (range 0) 1 | -11/Scrapyard | Entered Materials 1 | -10/Materials | Evolved 1 slot: Utility x1 79 | -10/Materials | Identified exit to Materials 79 | -10/Materials | Discovered exit to Materials (range 10) 302 | -10/Materials | Build established: Hacker-Mutant 536 | -10/Materials | Discovered exit to Materials (range 8) 669 | -10/Materials | Identified exit to Mines 669 | -10/Materials | Discovered exit to Mines (range 7) 733 | -10/Materials | Discovered exit to Materials (range 16) 860 | -10/Materials | Repaired Broken Arm. Wheel 1191 | -10/Materials | Entered Mines 1201 | -10/Mines | Assembled infested the area 1206 | -10/Mines | Assisted by a Guerilla fighting off Assembled 1472 | -10/Mines | Discovered exit to Materials (range 8) 1482 | -10/Mines | Entered Materials 1482 | -9/Materials | Evolved 2 slots: Utility x1, Weapon x1 1511 | -9/Materials | Repaired Lgt. Armor Plating 1624 | -9/Materials | Identified exit to Mines 1931 | -9/Materials | Build established: Hacker-Tank 2151 | -9/Materials | Identified exit to Materials 2151 | -9/Materials | Discovered exit to Materials (range 5) 2307 | -9/Materials | Build established: Hacker-Gunner 2549 | -9/Materials | Repaired Med. Armor Plating 2588 | -9/Materials | Repaired Lgt. Nuclear Core 2622 | -9/Materials | Repaired Spread Laser 2862 | -9/Materials | Discovered exit to Materials (range 15) 3370 | -9/Materials | Discovered exit to Materials (range 14) 3600 | -9/Materials | Entered another Materials area 3600 | -8/Materials | Accompanied by 2 allies 3600 | -8/Materials | Evolved 2 slots: Utility x2 3669 | -8/Materials | Garrison activated, responded to threat 3745 | -8/Materials | Destroyed 9 combat bots 4231 | -8/Materials | Identified exit to Garrison 4233 | -8/Materials | Entered Garrison 4233 | -8/Garrison | Accompanied by 1 ally 4241 | -8/Garrison | Installed Relay Interface Framework 4409 | -8/Garrison | Triggered checkpoint 4445 | -8/Garrison | Garrison Relay disabled 4522 | -8/Garrison | Triggered checkpoint 4647 | -8/Garrison | Garrison Relay disabled 4716 | -8/Garrison | Identified exit to Materials 4716 | -8/Garrison | Discovered exit to Materials (range 15) 4793 | -8/Garrison | Triggered checkpoint 4994 | -8/Garrison | Discovered exit to Materials (range 15) 5080 | -8/Garrison | Triggered checkpoint 5103 | -8/Garrison | Garrison Relay disabled 5210 | -8/Garrison | Triggered checkpoint 5342 | -8/Garrison | Triggered checkpoint 5367 | -8/Garrison | Discovered exit to Materials (range 13) 5428 | -8/Garrison | Garrison Relay disabled 5487 | -8/Garrison | Spotted B-75 Beast 5537 | -8/Garrison | Destroyed B-75 Beast 6028 | -8/Garrison | Entered Materials 6028 | -8/Materials | Accompanied by 1 ally 6047 | -8/Materials | Build established: Hacker-Mutant 6384 | -8/Materials | Build established: Hacker-Gunner 6635 | -8/Materials | Identified exit to Factory 6635 | -8/Materials | Discovered exit to Factory (range 11) 6715 | -8/Materials | Identified exit to Garrison 6716 | -8/Materials | Entered Garrison 6716 | -8/Garrison | Accompanied by 1 ally 6724 | -8/Garrison | Expanded RIF knowledge: Hotswap 6841 | -8/Garrison | Build established: Hacker-Mutant 6875 | -8/Garrison | Triggered checkpoint 6911 | -8/Garrison | Garrison Relay disabled 7037 | -8/Garrison | Triggered checkpoint 7086 | -8/Garrison | Triggered checkpoint 7325 | -8/Garrison | Garrison Relay disabled 7372 | -8/Garrison | Discovered exit to Factory (range 15) 7669 | -8/Garrison | Triggered checkpoint 7753 | -8/Garrison | Garrison Relay disabled 7779 | -8/Garrison | Discovered exit to Factory (range 3) 8174 | -8/Garrison | Triggered checkpoint 8203 | -8/Garrison | Garrison Relay disabled 8236 | -8/Garrison | Discovered exit to Factory (range 8) 8300 | -8/Garrison | Entered Factory 8300 | -7/Factory | Accompanied by 1 ally 8300 | -7/Factory | Evolved 2 slots: Propulsion x1, Utility x1 8475 | -7/Factory | Build established: Hacker-Gunner 8891 | -7/Factory | Build established: Scavenger-Gunner 9554 | -7/Factory | Found Prototype Launcher 9554 | -7/Factory | Identified Rocket Array 9608 | -7/Factory | Cargo convoy interrupted 9883 | -7/Factory | Fabricated Imp. Utility Shielding (x2) 10060 | -7/Factory | Identified exit to Garrison 10061 | -7/Factory | Entered Garrison 10124 | -7/Garrison | Triggered checkpoint 10161 | -7/Garrison | Garrison Relay disabled 10280 | -7/Garrison | Triggered checkpoint 10336 | -7/Garrison | Triggered checkpoint 10403 | -7/Garrison | Identified exit to Factory 10403 | -7/Garrison | Discovered exit to Factory (range 10) 10422 | -7/Garrison | Expanded RIF knowledge: Robot Detection 10472 | -7/Garrison | Triggered checkpoint 10513 | -7/Garrison | Garrison Relay disabled 10707 | -7/Garrison | Discovered exit to Factory (range 10) 10772 | -7/Garrison | Triggered checkpoint 10793 | -7/Garrison | Garrison Relay disabled 10850 | -7/Garrison | Build established: Bothacker-Tank 10962 | -7/Garrison | Triggered checkpoint 11118 | -7/Garrison | Discovered exit to Factory (range 10) 11331 | -7/Garrison | Triggered checkpoint 11475 | -7/Garrison | Garrison Relay disabled 11583 | -7/Garrison | Build established: Bothacker-Mutant 11989 | -7/Garrison | Entered Factory 12917 | -7/Factory | Identified exit to Garrison 12919 | -7/Factory | Entered Garrison 12932 | -7/Garrison | Expanded RIF knowledge: Program Shield 13010 | -7/Garrison | Triggered checkpoint 13083 | -7/Garrison | Garrison Relay disabled 13296 | -7/Garrison | Triggered checkpoint 13502 | -7/Garrison | Triggered checkpoint 13561 | -7/Garrison | Garrison Relay disabled 13589 | -7/Garrison | Build established: Bothacker-Tank 13623 | -7/Garrison | Identified exit to Factory 13623 | -7/Garrison | Discovered exit to Factory (range 14) 13904 | -7/Garrison | Build established: Bothacker-Mutant 14036 | -7/Garrison | Triggered checkpoint 14084 | -7/Garrison | Garrison Relay disabled 14207 | -7/Garrison | Discovered exit to Factory (range 9) 14384 | -7/Garrison | Triggered checkpoint 14518 | -7/Garrison | Triggered checkpoint 14609 | -7/Garrison | Garrison Relay disabled 14758 | -7/Garrison | Build established: Botlord-Tank 15289 | -7/Garrison | Entered Factory 15289 | -6/Factory | Evolved 2 slots: Propulsion x1, Utility x1 15387 | -6/Factory | Build established: Botlord-Mutant 15447 | -6/Factory | Repaired Imp. Cooling System 15927 | -6/Factory | Build established: Botlord-Tank 16023 | -6/Factory | Cargo convoy interrupted 16442 | -6/Factory | Build established: Botlord-Mutant 16983 | -6/Factory | Identified exit to Factory 16983 | -6/Factory | Discovered exit to Factory (range 5) 17131 | -6/Factory | Build established: Botlord-Tank 17515 | -6/Factory | Identified exit to Lower Caves 17515 | -6/Factory | Discovered exit to Lower Caves (range 22) 17523 | -6/Factory | Discovered exit to Factory (range 22) 17586 | -6/Factory | Repaired Lgt. Treads 18016 | -6/Factory | Fabricated Imp. Utility Shielding (x2) 18095 | -6/Factory | Fabricated Arm. Wheel? 18108 | -6/Factory | Local fabrication network quarantined 18172 | -6/Factory | Identified exit to Garrison 18173 | -6/Factory | Entered Garrison 18194 | -6/Garrison | Build established: Botlord-Mutant 18219 | -6/Garrison | Phase Generator disabled 18348 | -6/Garrison | Triggered checkpoint 18371 | -6/Garrison | Garrison Relay disabled 18552 | -6/Garrison | Triggered checkpoint 18557 | -6/Garrison | Build established: Botlord-Tank 18557 | -6/Garrison | Garrison Relay disabled 18583 | -6/Garrison | Discovered exit to Factory (range 5) 18621 | -6/Garrison | Spotted B-75 Beast 18826 | -6/Garrison | Discovered exit to Factory (range 15) 18881 | -6/Garrison | Triggered checkpoint 18914 | -6/Garrison | Garrison Relay disabled 19136 | -6/Garrison | Garrison Relay disabled 19180 | -6/Garrison | Discovered exit to Factory (range 13) 19202 | -6/Garrison | Expanded RIF knowledge: Coupler Efficiency 19251 | -6/Garrison | Entered Factory 19251 | -5/Factory | Evolved 2 slots: Utility x2 19443 | -5/Factory | Identified exit to Factory 19443 | -5/Factory | Discovered exit to Factory (range 12) 19700 | -5/Factory | Spotted B-75 Beast 20359 | -5/Factory | Build established: Botlord-Mutant 20775 | -5/Factory | Identified exit to Upper Caves 20775 | -5/Factory | Discovered exit to Upper Caves (range 15) 21016 | -5/Factory | Identified exit to Extension 21016 | -5/Factory | Discovered exit to Extension (range 6) 21093 | -5/Factory | Entered Extension 21237 | -5/Extension | Rescued a captive Derelict 21255 | -5/Extension | Rescued A7 21437 | -5/Extension | Rescued a captive Derelict 21476 | -5/Extension | Rescued a captive Derelict 21517 | -5/Extension | Spotted B-75 Beast 21522 | -5/Extension | Spotted B-75 Beast 21551 | -5/Extension | Destroyed B-75 Beast 21558 | -5/Extension | Allies destroyed B-75 Beast 21688 | -5/Extension | Rescued a captive Derelict 21692 | -5/Extension | Rescued a captive Derelict 21890 | -5/Extension | Discovered exit to Factory (range 10) 21892 | -5/Extension | Identified exit to Cetus 21892 | -5/Extension | Discovered exit to Cetus (range 6) 21930 | -5/Extension | Entered Cetus 21930 | -5/Cetus | Accompanied by 4 allies (A7) 21935 | -5/Cetus | Acquired a Cetus Manufacturing Module code from A7 21946 | -5/Cetus | Spotted Cetus Guard 21946 | -5/Cetus | Spotted Cetus Guard 21949 | -5/Cetus | Spotted Cetus Guard 21956 | -5/Cetus | Destroyed Cetus Guard 21965 | -5/Cetus | Allies destroyed Cetus Guard 21967 | -5/Cetus | Spotted Cetus Guard 21973 | -5/Cetus | Destroyed Cetus Guard 21984 | -5/Cetus | Destroyed Cetus Guard 22169 | -5/Cetus | Started Cetus Manufacturing Module 22179 | -5/Cetus | Escorted A7 to Cetus Mainframe 22194 | -5/Cetus | Manufactured an Enhanced Grunt 22219 | -5/Cetus | Manufactured an Enhanced Grunt 22244 | -5/Cetus | Manufactured an Enhanced Grunt 22269 | -5/Cetus | Manufactured an Enhanced Grunt 22294 | -5/Cetus | Manufactured an Enhanced Grunt 22314 | -5/Cetus | Identified exit to Archives 22314 | -5/Cetus | Discovered exit to Archives (range 15) 22354 | -5/Cetus | Entered Archives 22354 | -5/Archives | Accompanied by 6 allies (A7) 22359 | -5/Archives | Received a hacking code to weaken MAIN.C 22369 | -5/Archives | Build established: Botlord-Gunner 22392 | -5/Archives | Unable to access archive contents 22406 | -5/Archives | Unable to access archive contents 22462 | -5/Archives | Discovered exit to Factory (range 16) 22564 | -5/Archives | Identified exit to Hub_04(d) 22564 | -5/Archives | Discovered exit to Hub_04(d) (range 15) 22720 | -5/Archives | Build established: Botlord-Mutant 22798 | -5/Archives | Discovered exit to Hub_04(d) (range 16) 22831 | -5/Archives | Entered Hub_04(d) 22831 | -5/Hub_04(d) | Accompanied by 5 allies 22831 | -5/Hub_04(d) | Discovered exit to Factory (range 11) 23016 | -5/Hub_04(d) | Discovered exit to Factory (range 5) 23118 | -5/Hub_04(d) | Discovered exit to Factory (range 12) 23316 | -5/Hub_04(d) | Network Hub disabled 23316 | -5/Hub_04(d) | Network Hub disabled 23370 | -5/Hub_04(d) | Spotted Lightning 23455 | -5/Hub_04(d) | Identified exit to Garrison 23456 | -5/Hub_04(d) | Entered Garrison 23517 | -5/Garrison | Phase Generator disabled 23554 | -5/Garrison | Triggered checkpoint 23567 | -5/Garrison | Garrison Relay disabled 23647 | -5/Garrison | Spotted B-75 Beast 23656 | -5/Garrison | Triggered checkpoint 23662 | -5/Garrison | Triggered checkpoint 23718 | -5/Garrison | Destroyed B-75 Beast 23915 | -5/Garrison | Discovered exit to Factory (range 10) 23964 | -5/Garrison | Triggered checkpoint 24007 | -5/Garrison | Build established: Botlord-Gunner 24049 | -5/Garrison | Garrison Relay disabled 24188 | -5/Garrison | Triggered checkpoint 24226 | -5/Garrison | Garrison Relay disabled 24271 | -5/Garrison | Discovered exit to Factory (range 15) 24297 | -5/Garrison | Expanded RIF knowledge: Zone Cloak 24442 | -5/Garrison | Triggered checkpoint 24476 | -5/Garrison | Garrison Relay disabled 24522 | -5/Garrison | Build established: Botlord-Mutant 24770 | -5/Garrison | Discovered exit to Factory (range 10) 24835 | -5/Garrison | Triggered checkpoint 25062 | -5/Garrison | Entered Factory 25062 | -4/Factory | Accompanied by 5 allies 25062 | -4/Factory | Evolved 2 slots: Utility x2 25127 | -4/Factory | Found Exp. Targeting Computer 25131 | -4/Factory | Found Exp. Targeting Computer 25133 | -4/Factory | Found Exp. Targeting Computer 25312 | -4/Factory | First assault squad dispatched 25316 | -4/Factory | Identified exit to Garrison 25323 | -4/Factory | Entered Garrison 25323 | -4/Garrison | Accompanied by 6 allies 25374 | -4/Garrison | Triggered checkpoint 25409 | -4/Garrison | Garrison Relay disabled 25497 | -4/Garrison | Triggered checkpoint 25513 | -4/Garrison | Spotted B-86 Titan 25648 | -4/Garrison | Destroyed B-86 Titan 25747 | -4/Garrison | Identified exit to Research 25747 | -4/Garrison | Discovered exit to Research (range 13) 25915 | -4/Garrison | Discovered exit to Research (range 13) 25937 | -4/Garrison | Build established: Botlord-Gunner 26131 | -4/Garrison | Discovered exit to Research (range 12) 26152 | -4/Garrison | Expanded RIF knowledge: Structural Interface 26193 | -4/Garrison | Phase Generator disabled 26260 | -4/Garrison | Triggered checkpoint 26322 | -4/Garrison | Garrison Relay disabled 26464 | -4/Garrison | Triggered checkpoint 26490 | -4/Garrison | Triggered checkpoint 26559 | -4/Garrison | Build established: Botlord-Mutant 27038 | -4/Garrison | Garrison Relay disabled 27068 | -4/Garrison | Triggered checkpoint 27220 | -4/Garrison | Triggered checkpoint 27256 | -4/Garrison | Build established: Botlord-Tank 27264 | -4/Garrison | Garrison Relay disabled 27438 | -4/Garrison | Entered Research 27438 | -3/Research | Evolved 2 slots: Utility x2 27518 | -3/Research | Fabricated Arm. Huge Wheel (x2) 27839 | -3/Research | Garrison activated, responded to threat 27938 | -3/Research | First assault squad dispatched 28267 | -3/Research | Identified exit to Garrison 28286 | -3/Research | Spotted Executioner 28287 | -3/Research | Cargo convoy interrupted 28295 | -3/Research | Spotted Executioner 28371 | -3/Research | Destroyed Executioner 28387 | -3/Research | Destroyed Executioner 28436 | -3/Research | Destroyed 8 combat bots 28438 | -3/Research | Lost 18 parts (1p3n9u5w) 28476 | -3/Research | Build established: Botlord-Mutant 28501 | -3/Research | Core integrity fell below 50% 28509 | -3/Research | Released all parts (3) 28513 | -3/Research | System corruption reached 10% 28523 | -3/Research | Core integrity fell below 20% 28533 | -3/Research | Lost 5 parts (1p2u2w) 28549 | -3/Research | Found Exp. Targeting Computer 28550 | -3/Research | Destroyed by G-67 Veteran with Electrolaser Last Messages --------------- Lgt. Antimatter Reactor Relay Coupler [Sentry] Wheel Lgt. Antimatter Reactor Relay Coupler [Sentry] Hvy. Machine Gun 28540_ R-10 Processor inserts Com. Wheel into recycling unit. 28540_ ALERT: Hostiles spotted, dispatching reinforcements to Terminal R011. 28541_ Acquired Prototype Device. 28541_ Identified Exp. Heat Sink. 28541_ Recycling Unit disabled. 28541_ Wave Intensifier disabled. 28543_ Acquired Relay Coupler [Hunter]. 28545_ Acquired Relay Coupler [Sentry]. 28547_ P-80 Master resets R-10 Processor, system corruption cleaned. 28549_ Acquired Exp. Targeting Computer. 28550_ G-67 Veteran suffers critical hit (Burn). 28550_ Chain reaction triggered in Lgt. Antimatter Reactor. 28550_ P-80 Master destroyed. Map ----- +----------------------------------------------------+ | ?????????????????????????????????????????????????? | | ?????????????????????????????????????????????????? | | ?????????????????????????????????????????????????? | | ?????????????????????????????????????????????????? | | ???????????????Y?????????????????????????????????? | | ?????????????????????????????????????????????????? | | ?????????????????????????????????????????????????? | | ?????????????????????????????????????????????????? | | ?????????????????????????????????????????????????? | | ?????????????????????????????????????????????????? | | ?????????????????????????????????????????????????? | | ?????????????????????????????????????????????????? | | ?????????????????????????????????????????????????? | | ?????????????????????????????????????????????????? | | ?????????????????????????????????????????????????? | | ?????????????????????????????????????????????????? | | ?????????????????????????????????????????????????? | | ?????????????????????????????????????????????????? | | #???????#????????????????????????????????????????? | | #######+#????????????################????????????? | | #????????????# ?????????????? | | #????????????# ?????????????? | | #?######?????# [ ??????????????? | | #?# = ?????#""=**[ ???????????????? | | #?# ?????#""[=!""" #???????????????? | | #?# """??#"Y=@=""" #???????????????? | | ########### """##; ] "" #???????????????? | | # # """# ; = "" #???????????????? | | ### """##; *!= "" #???????????????? | | #?# """##; l! """ #???????????????? | | #??? # ;t%[ """ #???????????????? | | /### #????? ##;=| #???????????????? | | % %# ##??####+#####gg #???????????????? | | %%=# ##??# ### ]#???????????????? | | !=%/ ##### % % bRg #???????????????? | | ]%!#%%% T" w ### #???????????????? | | =|#! | " #?? #???????????????? | | !!#%%! ##### #?? #???????????????? | | ![# ##??# ####g###??? #???????????????? | | #%= ##??###g####??#/#????? #???????????????? | | #### #???? ???? #?????? #???????????????? | | ??# #???# ??? #??????? ???????????????? | | ??# #???# ? #????????? ??????????????? | | ??# #???#/= #????????????????????????? | | ??# #???#/= #????????????????????????? | | ??# #???#! #????????????????????????? | | ??# #???#? #????????????????????????? | | +??# #???????##+#####?????????????????????????? | | ??# ????????????????????????????????????????? | | !?? ????????????????????????????????????????? | +----------------------------------------------------+ Best States ------------- Heat Dissipation 127 Coolant Potential 80 Energy Generation 25 Energy Capacity 700 Matter Stores 300 Matter Capacity 300 Sight Range 23 Robot Scan Range 16 Terrain Scan Density 10 Power Amplification 20 Heat Shielding 100 Armor Coverage 450 Resistance: KI 35 Resistance: TH 55 Resistance: EX 35 Resistance: EM 35 Resistance: I 35 Resistance: S 35 Resistance: P 35 Core Shielding 20 Utility Shielding 66 Weapon Shielding 66 Evasion (%) 50 Targeting Accuracy 24 Recoil Reduction 4 Energy Filtering 50 Particle Charging 20 Offensive Hacking 20 Defensive Hacking 12 Relay Coupler Types 240 Relay Coupler Value 5 Item Schematics ----------------- Hcp. Storage Unit | -10/Materials | Hacked Arm. Wheel | -9/Materials | Scanalyzed Sensor Array | -9/Materials | Scanalyzed Imp. Utility Shielding | -8/Materials | Scanalyzed Reflective Plating | -8/Materials | Hacked Huge Storage Unit | -7/Factory | Scanalyzed Disposable Heat Sink | -7/Factory | Scanalyzed Coolant Injector | -7/Factory | Scanalyzed Lyr. Light Armor Plating | -7/Factory | Scanalyzed Imp. Heat Sink | -7/Factory | Scanalyzed Imp. Grenade Launcher | -7/Factory | Scanalyzed Datajack | -7/Factory | Scanalyzed Hvy. Flail | -7/Factory | Scanalyzed Arm. Huge Wheel | -5/Factory | Scanalyzed Robot Schematics ------------------ None Fabricated ------------ Imp. Utility Shielding | x2 | -7/Factory Imp. Utility Shielding | x2 | -6/Factory Arm. Wheel | x2 | -6/Factory Arm. Huge Wheel | x2 | -3/Research Alien Tech Used ----------------- None Achievements -------------- Main Advantage Project G-00 Challenges ------------ None Game ------ Seed DefenseCooledCanceller Manual? 0 Play Time 06:26:15 Cumulative 246.1 hours Start 2021.06.20 @ 00:26:26 End 2021.07.02 @ 20:28:31 Sessions 23 Manual Loads 0 Difficulty Explorer Special Mode None Game No. 95 Rogue 68 Adventurer 0 Explorer 27 Win Type - Total 7 Types 5/1/1/0/0/0/0/0/0 Lore% 65 Gallery% 72 Achievement% 61 Wizard Run 0 Options --------- ASCII 1 Keyboard 1 Movement Numpad Keybinds 0 Fullscreen 1 Font 18/SmallcapsGlow Map View 76x50 Tactical HUD 1 Map Filters NONE Filters NONE Steam 1 RUN: af319980-2099-469a-839a-04c6dcb4d1fe